bitfinex-derivatives/quotes_SOLF0:USTF0_20230103
["timestamp","ask_amount","ask_price","bid_price","bid_amount"]
[1672733284328,0.07035542,11.845,11.84,50.0]
[1672733284641,0.07035542,11.845,11.841,4.0]
[1672733285267,0.07035542,11.845,11.84,50.0]
[1672733285697,0.07035542,11.845,11.837,0.06335675]
[1672733285899,16.73,11.842,11.837,0.06335675]
[1672733286746,0.07035542,11.845,11.837,0.06335675]
[1672733287170,16.71,11.846,11.845,0.14096246]
[1672733287380,16.67,11.847,11.845,0.14096246]
[1672733291162,16.67,11.847,11.842,0.0681161]
[1672733293788,4.0,11.851,11.842,0.0681161]
[1672733294005,16.76,11.846,11.842,0.0681161]
[1672733300727,16.82,11.843,11.831,65.9182]
[1672733301044,16.82,11.843,11.831,69.9182]
[1672733301569,0.06944171,11.842,11.833,0.06660193]
[1672733303254,0.06944171,11.842,11.834,16.82]
[1672733303463,0.06944171,11.842,11.835,4.0]
[1672733304195,0.06944171,11.842,11.839,50.0]
[1672733304407,0.07090744,11.845,11.836,0.07136753]
[1672733304619,0.07090744,11.845,11.839,50.0]
[1672733305358,0.07090744,11.845,11.836,0.07136753]
[1672733305565,0.07090744,11.845,11.839,50.0]
[1672733305879,0.07090744,11.845,11.84,4.0]
[1672733308938,0.07090744,11.845,11.838,4.0]
[1672733309358,0.07090744,11.845,11.839,50.0]
[1672733309568,0.07090744,11.845,11.84,4.0]
[1672733313250,16.82,11.849,11.845,0.08062717]
[1672733319763,16.68,11.851,11.845,0.08062717]
[1672733327438,16.67,11.846,11.845,0.08062717]
[1672733327955,16.5590155,11.846,11.845,0.08062717]
[1672733330476,16.82,11.849,11.845,0.08062717]
[1672733332270,0.01792329,11.845,11.843,0.06645041]
[1672733332481,0.01792329,11.845,11.84,0.06915916]
[1672733332691,0.01792329,11.845,11.84,4.06915916]
[1672733333111,0.01792329,11.845,11.84,0.06915916]
[1672733346036,16.72,11.849,11.84,0.06915916]
[1672733346037,16.72,11.849,11.845,0.19259943]
[1672733349505,64.2519,11.852,11.845,0.19259943]
[1672733354232,64.2219,11.852,11.845,0.19259943]
[1672733358647,47.4919,11.852,11.845,0.19259943]
[1672733361063,47.43026403,11.852,11.845,0.19259943]
[1672733363691,16.66,11.85,11.845,0.19259943]
[1672733363897,4.0,11.849,11.845,9.943e-05]
[1672733365477,16.66,11.85,11.845,9.943e-05]
[1672733369680,16.68,11.846,11.845,9.943e-05]
[1672733374720,4.0,11.845,11.825,4.0]
[1672733374930,4.0,11.832,11.82,48.907]
[1672733375140,16.79,11.83,11.822,4.0]
[1672733375354,4.0,11.829,11.819,16.81]
[1672733375560,0.06834366,11.828,11.82,4.06506194]
[1672733375777,0.06834366,11.828,11.823,4.0]
[1672733376191,0.06834366,11.828,11.824,16.74]
[1672733378082,16.68,11.836,11.825,16.81]
[1672733378296,4.0,11.842,11.825,16.81]
[1672733378297,16.81,11.839,11.826,4.0]
[1672733378508,4.0,11.838,11.826,4.0]
[1672733378716,4.0,11.838,11.825,16.81]
[1672733378934,4.0,11.838,11.827,16.75]
[1672733379133,4.0,11.838,11.828,0.06442108]
[1672733381968,16.79,11.848,11.836,16.85]
[1672733382182,50.0,11.843,11.838,0.06137038]
[1672733382503,50.0,11.843,11.833,16.83]
[1672733382504,4.0,11.842,11.836,0.0671138]
[1672733383341,20.78,11.842,11.836,0.0671138]
[1672733383545,16.76,11.84,11.836,0.0671138]
[1672733383761,4.0,11.839,11.836,0.0671138]
[1672733384077,4.0,11.839,11.833,0.06327001]
[1672733384287,16.76,11.84,11.832,0.06042373]
[1672733384499,16.76,11.84,11.832,0.06234125]
[1672733385332,4.0,11.836,11.832,0.06234125]
[1672733385653,4.0,11.835,11.832,0.06234125]
[1672733385968,4.0,11.835,11.829,0.06955037]
[1672733386283,20.76,11.836,11.828,0.06467008]
[1672733387023,50.0,11.833,11.828,0.06467008]
[1672733387227,4.0,11.832,11.828,0.06467008]
[1672733387651,50.0,11.833,11.828,0.06467008]
[1672733389641,4.0,11.832,11.828,7.008e-05]
[1672733390591,50.0,11.833,11.828,7.008e-05]
[1672733390801,16.8078379,11.834,11.828,7.008e-05]
[1672733391013,0.0678379,11.834,11.828,7.008e-05]
[1672733392064,50.0,11.833,11.828,7.008e-05]
[1672733392378,4.0,11.832,11.828,7.008e-05]
[1672733392584,16.85,11.83,11.828,7.008e-05]
[1672733392799,16.85,11.83,11.825,0.07094786]
[1672733393010,16.85,11.83,11.818,4.0]
[1672733393217,0.06678162,11.828,11.82,0.06604873]
[1672733398580,4.0,11.826,11.82,0.06604873]
[1672733398785,20.85,11.826,11.82,0.06604873]
[1672733399736,16.85,11.826,11.82,0.06604873]
[1672733403618,50.0,11.823,11.82,0.06604873]
[1672733403826,3.77134672,11.822,11.817,0.0710886]
[1672733404880,16.89,11.823,11.817,0.0710886]
[1672733405091,66.89,11.823,11.817,0.0710886]
[1672733408245,16.76,11.82,11.817,0.0710886]
[1672733408456,16.87,11.819,11.808,16.82]
[1672733408666,4.0678379,11.818,11.809,0.06234043]
[1672733408979,4.0678379,11.818,11.809,4.06234043]
[1672733409191,4.0678379,11.818,11.809,0.06234043]
[1672733409401,0.0678379,11.818,11.809,0.06234043]
[1672733414649,0.0678379,11.818,11.811,16.85]
[1672733414867,16.89,11.828,11.815,16.75]
[1672733415077,4.0,11.827,11.816,4.0]
[1672733415593,4.0,11.827,11.815,16.75]
[1672733416125,16.89,11.816,11.804,16.73]
[1672733416331,4.0,11.815,11.805,4.0]
[1672733416963,4.0,11.815,11.804,16.73]
[1672733417176,16.89,11.81,11.806,0.06963716]
[1672733417391,16.87,11.807,11.796,65.7651]
[1672733417699,4.0,11.806,11.797,4.0]
[1672733417910,4.0,11.806,11.796,16.83]
[1672733418330,4.0,11.807,11.796,16.83]
[1672733418540,0.0709193,11.806,11.797,0.06441745]
[1672733419488,0.0709193,11.806,11.797,4.06441745]
[1672733421902,0.0709193,11.806,11.797,0.06441745]
[1672733422114,0.0709193,11.806,11.8,16.94]
[1672733423794,0.0709193,11.806,11.798,16.94]
[1672733424109,0.0709193,11.806,11.799,4.0]
[1672733424532,0.0709193,11.806,11.798,16.94]
[1672733428415,0.0709193,11.806,11.801,16.94]
[1672733429047,0.0709193,11.806,11.801,16.92]
[1672733431044,575.0,11.811,11.806,0.12030297]
[1672733431464,16.92,11.81,11.806,0.12030297]
[1672733431674,4.0,11.809,11.806,0.12030297]
[1672733432304,20.92,11.81,11.806,0.12030297]
[1672733432510,16.92,11.81,11.806,0.12030297]
[1672733435249,16.92,11.808,11.806,0.12030297]
[1672733438398,0.06029469,11.812,11.806,0.12030297]
[1672733438611,67.49,11.825,11.807,4.0]
[1672733438612,16.92,11.819,11.807,4.0]
[1672733438929,4.0,11.818,11.807,4.0]
[1672733439237,16.92,11.819,11.807,4.0]
[1672733439445,16.77,11.821,11.809,4.0]
[1672733439660,66.92,11.823,11.811,4.06092674]
[1672733441755,16.92,11.823,11.811,4.06092674]
[1672733441964,66.92,11.823,11.811,4.06092674]
[1672733442185,66.92,11.823,11.811,0.06092674]
[1672733451647,66.84106603,11.823,11.811,4.06092674]
[1672733452479,50.0,11.823,11.812,16.92]
[1672733452797,50.0,11.823,11.813,4.06948538]
[1672733456160,50.0,11.823,11.813,0.06948538]
[1672733459628,16.84,11.827,11.814,16.92]
[1672733459835,16.84,11.83,11.818,16.77]
[1672733460041,4.0,11.829,11.82,0.06465967]
[1672733460255,16.84,11.83,11.82,0.06465967]
[1672733461204,50.0,11.823,11.82,0.06465967]
[1672733461418,4.0,11.822,11.817,0.06863695]
[1672733461621,4.0,11.822,11.815,0.06742993]
[1672733461827,50.0,11.823,11.815,0.06742993]
[1672733466144,49.92113567,11.823,11.815,0.06742993]
[1672733471393,49.92113567,11.823,11.815,16.98742993]
[1672733475489,49.92113567,11.823,11.815,0.06742993]
[1672733476231,16.92,11.821,11.815,0.06742993]
[1672733476544,4.0,11.82,11.815,0.06742993]
[1672733477068,4.0,11.82,11.809,16.91]
[1672733477280,66.84113567,11.813,11.803,16.92]
[1672733477491,4.0,11.812,11.803,16.92]
[1672733478435,4.0,11.812,11.805,0.06019738]
[1672733478647,66.90195269,11.813,11.805,0.06019738]
[1672733480744,16.81,11.811,11.805,0.06019738]
[1672733480955,4.0,11.81,11.805,0.06019738]
[1672733481377,16.81,11.811,11.805,0.06019738]
[1672733482323,63.4041,11.811,11.805,0.06019738]
[1672733483271,4.0,11.81,11.806,2.97e-06]
[1672733484216,63.4041,11.811,11.806,2.97e-06]
[1672733485263,49.92113567,11.807,11.806,2.97e-06]
[1672733487891,16.92,11.808,11.806,2.97e-06]
[1672733488422,49.92113567,11.807,11.806,2.97e-06]
[1672733496503,49.76622903,11.807,11.806,2.97e-06]
[1672733496930,49.76622903,11.807,11.802,0.06019752]
[1672733497139,16.92,11.803,11.802,0.06019752]
[1672733497455,16.92,11.803,11.798,0.06164893]
[1672733497665,16.92,11.803,11.796,0.06613064]
[1672733497875,16.92,11.803,11.795,0.06822404]
[1672733498085,16.98239352,11.803,11.795,0.06822404]
[1672733499667,0.06239352,11.803,11.795,0.06822404]
[1672733499880,0.06239352,11.803,11.797,16.92]
[1672733500190,0.06239352,11.803,11.798,4.0]
[1672733500611,0.06239352,11.803,11.801,0.23377097]
[1672733500928,0.06742993,11.806,11.801,0.23377097]
[1672733501243,4.06742993,11.808,11.801,0.23377097]
[1672733501556,4.06742993,11.808,11.799,0.06504728]
[1672733501768,0.06742993,11.808,11.799,0.06504728]
[1672733502500,0.06742993,11.808,11.801,0.23377097]
[1672733504394,49.76622903,11.804,11.799,0.06504728]
[1672733504599,4.0,11.803,11.799,0.06504728]
[1672733505341,49.76622903,11.804,11.799,0.06504728]
[1672733506708,16.90742993,11.806,11.799,0.06504728]
[1672733507231,49.76622903,11.804,11.799,0.06504728]
[1672733507969,46.5941,11.811,11.801,0.23377097]
[1672733508706,46.5941,11.811,11.8,4.0]
[1672733508913,16.92,11.812,11.802,4.0]
[1672733509117,49.76622903,11.814,11.803,0.06194332]
[1672733510702,95.82362903,11.814,11.803,0.06194332]
[1672733511231,16.92,11.813,11.803,0.06194332]
[1672733511443,4.0,11.812,11.803,0.06194332]
[1672733511860,16.92,11.813,11.803,0.06194332]
[1672733515435,95.82362903,11.814,11.804,16.84]
[1672733515748,95.82362903,11.814,11.805,4.0]
[1672733515959,95.82362903,11.814,11.805,4.06356928]
[1672733516380,95.82362903,11.814,11.805,0.06356928]
[1672733517850,46.0574,11.814,11.805,0.06356928]
[1672733518167,95.82362903,11.814,11.805,0.06356928]
[1672733521000,16.92,11.81,11.805,6.928e-05]
[1672733521213,4.0,11.809,11.799,16.92]
[1672733521422,49.76622903,11.804,11.795,16.84]
[1672733521736,4.0,11.803,11.796,4.0]
[1672733521940,49.76622903,11.804,11.796,4.0]
[1672733522148,49.82979831,11.804,11.796,0.06244743]
[1672733524359,0.06356928,11.804,11.796,0.06244743]
[1672733524672,49.82979831,11.804,11.796,0.06244743]
[1672733526990,0.06356928,11.804,11.798,16.86]
[1672733527410,49.82979831,11.804,11.798,16.86]
[1672733528885,49.82979831,11.804,11.796,0.06244743]
[1672733535394,49.63538222,11.804,11.796,4.06244743]
[1672733536025,49.63538222,11.804,11.796,0.06244743]
[1672733538026,49.63538222,11.805,11.796,0.06244743]
[1672733538233,4.0,11.804,11.796,0.06244743]
[1672733538645,49.63538222,11.805,11.796,0.06244743]
[1672733539811,16.9,11.804,11.796,0.06244743]
[1672733540124,4.0,11.803,11.796,0.06244743]
[1672733541172,16.9,11.804,11.796,0.06244743]
[1672733542328,49.63538222,11.805,11.796,0.06244743]
[1672733542329,16.8,11.801,11.796,0.06244743]
[1672733542853,4.0,11.8,11.796,0.06244743]
[1672733543270,16.8,11.801,11.796,0.06244743]
[1672733548107,16.71300382,11.801,11.796,0.06244743]
[1672733549676,66.57538222,11.797,11.782,0.36461778]
[1672733549893,49.63538222,11.795,11.783,16.91]
[1672733550094,16.94,11.797,11.784,4.0]
[1672733550729,0.06244743,11.795,11.787,0.06898048]
[1672733551781,0.06244743,11.795,11.787,4.06898048]
[1672733552519,0.06244743,11.795,11.787,0.06898048]
[1672733553152,0.06244743,11.795,11.792,0.36461778]
[1672733553466,0.06244743,11.798,11.789,0.06101096]
[1672733553675,4.06244743,11.798,11.793,0.36461778]
[1672733554199,0.06244743,11.798,11.793,0.36461778]
[1672733555671,0.06244743,11.798,11.791,0.06019478]
[1672733556512,0.06244743,11.798,11.793,0.36461778]
[1672733559978,0.06244743,11.798,11.791,0.06019478]
[1672733560714,0.06244743,11.798,11.793,0.36461778]
[1672733561451,0.06244743,11.798,11.791,0.06019478]
[1672733562500,16.94,11.799,11.798,0.00511712]
[1672733571744,63.9207,11.802,11.798,0.00511712]
[1672733575951,63.69662467,11.802,11.798,0.00511712]
[1672733581524,16.85,11.804,11.798,0.00511712]
[1672733582256,16.8,11.807,11.798,0.00511712]
[1672733582466,16.86,11.811,11.798,16.9155908]
[1672733582671,16.86,11.811,11.8,0.06270062]
[1672733584988,4.06270062,11.81,11.799,4.0]
[1672733585198,49.63538222,11.805,11.798,16.84511712]
[1672733585516,4.0,11.804,11.798,0.00511712]
[1672733585930,16.8,11.802,11.798,0.00511712]
[1672733586140,4.0,11.801,11.798,0.00511712]
[1672733586564,16.8,11.802,11.798,0.00511712]
[1672733590348,4.0,11.801,11.797,0.06247674]
[1672733590872,16.8,11.802,11.797,7.674e-05]
[1672733591085,4.0,11.801,11.797,7.674e-05]
[1672733591398,4.0,11.801,11.793,0.36461778]
[1672733591608,4.0,11.801,11.79,16.94]
[1672733591817,4.0,11.801,11.793,0.36461778]
[1672733592029,16.8,11.802,11.793,0.36461778]
[1672733592232,16.8613735,11.802,11.793,0.43504816]
[1672733597075,16.8613735,11.802,11.793,0.07043038]
[1672733597285,16.8613735,11.802,11.784,64.846]
[1672733597286,16.94,11.795,11.784,64.846]
[1672733597594,16.94,11.795,11.785,4.0]
[1672733597805,16.93,11.798,11.793,0.36461778]
[1672733598020,16.93,11.798,11.788,4.0]
[1672733598333,0.06906643,11.797,11.789,0.07104318]
[1672733598753,0.06906643,11.797,11.793,0.36461778]
[1672733598966,0.06906643,11.797,11.789,0.07104318]
[1672733599489,0.06906643,11.797,11.793,0.36461778]
[1672733601798,0.06906643,11.797,11.791,4.0]
[1672733602009,0.06906643,11.797,11.794,0.36461778]
[1672733602218,0.06853106,11.8,11.794,0.36461778]
[1672733602741,0.06853106,11.8,11.793,0.06510997]
[1672733602956,0.06853106,11.8,11.794,0.36461778]
[1672733605375,0.06853106,11.8,11.793,0.06510997]
[1672733605579,0.06853106,11.8,11.794,0.36461778]
[1672733609684,0.06853106,11.8,11.793,0.06510997]
[1672733609895,0.06853106,11.8,11.794,0.36461778]
[1672733610630,0.00325464,11.8,11.794,0.36461778]
[1672733611892,0.00325464,11.8,11.793,0.06510997]
[1672733612102,0.00325464,11.8,11.794,0.36461778]
[1672733616412,0.00325464,11.8,11.794,17.30461778]
[1672733616622,0.00325464,11.8,11.795,4.0]
[1672733619677,0.00325464,11.8,11.794,17.30461778]
[1672733621351,0.00325464,11.8,11.794,16.94]
[1672733621772,0.00325464,11.8,11.794,17.30461778]
[1672733622933,0.00325464,11.8,11.794,16.94]
[1672733623139,0.00325464,11.8,11.793,0.06510997]
[1672733623458,0.00325464,11.8,11.794,0.36461778]
[1672733623777,66.9835,11.804,11.8,0.133722]
[1672733623981,67.1335,11.804,11.8,0.133722]
[1672733625140,4.0,11.803,11.8,2.2e-05]
[1672733625665,67.1335,11.804,11.8,2.2e-05]
[1672733626086,4.0,11.803,11.8,2.2e-05]
[1672733628505,67.1335,11.804,11.8,2.2e-05]
[1672733629656,4.0,11.803,11.798,0.00874036]
[1672733629863,4.0,11.803,11.783,67.8]
[1672733629864,66.58538222,11.799,11.784,48.40027355]
[1672733630184,4.0,11.795,11.784,48.40027355]
[1672733630395,4.0,11.795,11.784,0.36461778]
[1672733630603,4.0,11.795,11.785,16.95]
[1672733630818,0.06444073,11.794,11.786,0.07032359]
[1672733631236,0.06444073,11.794,11.786,4.07032359]
[1672733632810,0.06444073,11.794,11.786,0.07032359]
[1672733641856,66.60538222,11.797,11.794,0.16868388]
[1672733644058,49.63538222,11.797,11.794,0.16868388]
[1672733644272,4.0,11.796,11.791,0.06220364]
[1672733644691,49.63538222,11.797,11.791,0.06220364]
[1672733644901,4.0,11.796,11.791,0.06220364]
[1672733645112,16.96,11.795,11.791,0.06220364]
[1672733645425,16.83,11.792,11.779,16.91]
[1672733645633,16.96,11.79,11.779,4.0]
[1672733646475,0.07069269,11.789,11.78,0.06471955]
[1672733646689,4.07069269,11.789,11.785,0.36461778]
[1672733647209,0.07069269,11.789,11.783,0.06506106]
[1672733647420,0.07069269,11.789,11.785,0.36461778]
[1672733648889,16.83,11.795,11.785,0.36461778]
[1672733649097,16.96,11.796,11.786,4.0]
[1672733649943,0.06788545,11.795,11.787,0.06004184]
[1672733650675,0.06788545,11.795,11.787,17.02004184]
[1672733651835,0.06788545,11.795,11.787,0.06004184]
[1672733652456,16.96,11.794,11.787,0.06004184]
[1672733652670,4.0,11.793,11.787,0.06004184]
[1672733653307,20.96,11.794,11.787,0.06004184]
[1672733653617,16.96,11.794,11.787,0.06004184]
[1672733653943,16.94,11.794,11.787,0.06004184]
[1672733654141,4.0,11.793,11.787,0.06004184]
[1672733654880,16.94,11.794,11.787,0.06004184]
[1672733655083,0.06788545,11.795,11.787,0.06004184]
[1672733655402,17.04788545,11.795,11.787,0.06004184]
[1672733661291,16.89,11.798,11.795,0.084898]
[1672733661503,16.83,11.8,11.795,0.084898]
[1672733663283,16.98,11.797,11.793,0.06002936]
[1672733663504,16.94,11.794,11.793,0.06002936]
[1672733663708,16.94,11.794,11.789,0.06154314]
[1672733663914,16.94,11.794,11.787,0.06657156]
[1672733665812,16.98,11.796,11.787,0.06657156]
[1672733666231,16.98,11.799,11.787,17.04657156]
[1672733666545,16.98,11.799,11.789,0.06412685]
[1672733668440,4.0,11.795,11.789,0.06412685]
[1672733668848,16.98,11.796,11.789,0.06412685]
[1672733672007,49.63538222,11.798,11.789,0.06412685]
[1672733672008,16.98,11.794,11.789,0.06412685]
[1672733672213,20.89,11.793,11.789,0.06412685]
[1672733672534,4.0,11.792,11.789,0.06412685]
[1672733672744,4.0,11.792,11.786,0.43108665]
[1672733674005,16.89,11.793,11.786,0.43108665]
[1672733675157,16.98,11.79,11.786,0.43108665]
[1672733675370,4.0,11.789,11.786,0.43108665]
[1672733675577,4.0,11.789,11.783,0.06155134]
[1672733675789,4.0,11.789,11.782,0.06774827]
[1672733675998,16.98,11.79,11.781,0.06670787]
[1672733676315,16.98,11.79,11.786,0.36461778]
[1672733676526,16.75628513,11.79,11.786,0.36461778]
[1672733677050,16.75628513,11.79,11.784,0.06299206]
[1672733677577,16.75628513,11.79,11.786,0.36461778]
[1672733678308,4.0,11.789,11.786,1.778e-05]
[1672733679151,16.75628513,11.79,11.786,1.778e-05]
[1672733679466,0.14536676,11.786,11.784,0.06299206]
[1672733679675,0.14536676,11.786,11.781,0.06617695]
[1672733679886,0.14536676,11.786,11.779,0.06666168]
[1672733692813,0.01250606,11.786,11.779,0.06666168]
[1672733702165,0.01250606,11.786,11.781,4.0]
[1672733702587,16.89,11.793,11.783,0.06513315]
[1672733702791,16.96,11.794,11.784,0.06146159]
[1672733703001,16.96,11.794,11.785,0.06304772]
[1672733703847,16.98,11.798,11.785,0.06304772]
[1672733704051,4.0,11.797,11.787,0.06062482]
[1672733704472,16.83,11.798,11.787,0.06062482]
[1672733712461,50.0,11.809,11.787,0.06062482]
[1672733712462,16.96,11.801,11.789,16.96]
[1672733712665,16.96,11.801,11.791,0.06512609]
[1672733713933,16.8,11.801,11.791,0.06512609]
[1672733716245,16.73410195,11.801,11.791,0.06512609]
[1672733723184,16.95,11.804,11.791,17.00512609]
[1672733723500,16.95,11.804,11.793,0.07001504]
[1672733729593,16.71656894,11.804,11.793,0.07001504]
[1672733732117,16.92,11.801,11.793,0.07001504]
[1672733732431,16.92,11.798,11.793,0.06648357]
[1672733732641,16.92,11.798,11.788,4.0]
[1672733732642,16.92,11.798,11.791,0.06380271]
[1672733735271,16.78,11.799,11.791,0.06380271]
[1672733744304,16.56453377,11.799,11.791,0.06380271]
[1672733750091,16.95,11.795,11.791,2.71e-06]
[1672733750299,4.0,11.794,11.791,2.71e-06]
[1672733750507,4.0,11.794,11.781,20.95]
[1672733751144,0.0686308,11.792,11.783,0.07036225]
[1672733752093,16.9886308,11.792,11.783,0.07036225]
[1672733765020,16.75927113,11.792,11.783,0.07036225]
[1672733768173,0.05951885,11.783,11.782,4.0]
[1672733768383,0.05951885,11.783,11.781,16.95]
[1672733769219,16.95,11.796,11.782,66.95]
[1672733769435,16.95,11.796,11.787,4.0]
[1672733770379,50.1087,11.797,11.787,21.01263346]
[1672733771845,16.78,11.8,11.787,21.01263346]
[1672733772061,16.78,11.8,11.789,0.06685048]
[1672733772271,16.78,11.8,11.789,4.06685048]
[1672733775742,16.85,11.801,11.789,4.06685048]
[1672733775954,16.85,11.801,11.791,0.07036423]
[1672733781000,16.95,11.805,11.792,16.95]
[1672733781208,4.0,11.804,11.794,0.06416334]
[1672733781630,16.95,11.805,11.794,0.06416334]
[1672733782786,16.7958011,11.805,11.794,0.06416334]
[1672733788676,66.0951,11.808,11.795,16.95]
[1672733788882,66.0951,11.808,11.797,0.06944074]
[1672733797709,66.00167407,11.808,11.797,0.06944074]
[1672733799182,16.95,11.804,11.797,0.06944074]
[1672733799391,4.0,11.803,11.797,0.06944074]
[1672733799596,16.95,11.8,11.797,0.06944074]
[1672733799812,16.95,11.8,11.794,0.06129486]
[1672733800023,16.95,11.8,11.793,0.0693347]
[1672733804645,16.95,11.797,11.793,0.0693347]
[1672733805279,16.95,11.797,11.784,20.85]
[1672733805280,16.85,11.794,11.779,16.95]
[1672733805487,16.92,11.791,11.78,4.0]
[1672733806332,0.06364752,11.79,11.78,4.0]
[1672733806535,0.06364752,11.79,11.781,0.06731463]
[1672733819782,16.89,11.788,11.781,0.06731463]
[1672733819990,16.67089401,11.788,11.781,0.06731463]
[1672733825975,16.98,11.782,11.767,4.0]
[1672733826291,16.98,11.78,11.767,4.0]
[1672733826507,4.0,11.779,11.767,53.4246]
[1672733826926,0.07080715,11.777,11.769,0.06997902]
[1672733829764,17.05080715,11.777,11.769,0.06997902]
[1672733829975,0.07080715,11.777,11.769,0.06997902]
[1672733840586,17.0,11.781,11.777,0.12840549]
[1672733840798,17.0,11.781,11.777,5.49e-06]
[1672733841010,4.0,11.78,11.777,5.49e-06]
[1672733842270,17.0,11.778,11.777,5.49e-06]
[1672733849203,16.92,11.778,11.777,5.49e-06]
[1672733854037,47.98057131,11.783,11.777,5.49e-06]
[1672733854671,0.06537131,11.783,11.777,5.49e-06]
[1672733854877,48.94997131,11.783,11.777,5.49e-06]
[1672733855082,48.8846,11.783,11.777,5.49e-06]
[1672733855297,48.76755871,11.783,11.777,5.49e-06]
[1672733856456,17.02,11.781,11.777,5.49e-06]
[1672733857613,16.95,11.779,11.777,5.49e-06]
[1672733857816,4.0,11.778,11.777,5.49e-06]
[1672733858237,16.95,11.779,11.777,5.49e-06]
[1672733868121,0.21236734,11.777,11.774,0.06227401]
[1672733868331,0.21236734,11.777,11.771,0.06104287]
[1672733876841,4.21236734,11.777,11.771,4.287e-05]
[1672733877265,0.21236734,11.777,11.771,4.287e-05]
[1672733879682,48.07506482,11.778,11.771,4.287e-05]
[1672733884517,0.06906482,11.778,11.771,4.287e-05]
[1672733889978,0.00028141,11.778,11.771,4.287e-05]
[1672733902070,17.02,11.78,11.778,0.23857208]
[1672733902276,4.0,11.779,11.77,4.0]
[1672733902594,4.0,11.779,11.768,50.0]
[1672733903015,4.0,11.779,11.769,0.06937891]
[1672733903225,4.0,11.779,11.769,4.06937891]
[1672733903851,4.0,11.779,11.769,0.06937891]
[1672733904378,17.02,11.78,11.769,0.06937891]
[1672733908906,17.02,11.782,11.769,0.06937891]
[1672733909113,4.0,11.781,11.771,0.06467634]
[1672733909745,17.02,11.782,11.771,0.06467634]
[1672733910057,4.0,11.779,11.771,0.06467634]
[1672733910475,16.91,11.78,11.771,0.06467634]
[1672733913001,49.4772,11.784,11.771,0.06467634]
[1672733913205,49.4772,11.784,11.773,0.06402296]
[1672733913417,17.02,11.785,11.773,0.06402296]
[1672733913940,67.8135,11.788,11.773,0.06402296]
[1672733914156,67.8135,11.788,11.776,0.06445088]
[1672733915625,67.63199828,11.788,11.776,0.06445088]
[1672733916147,17.02,11.788,11.776,0.06445088]
[1672733916361,17.02,11.796,11.778,50.0]
[1672733916572,4.0,11.795,11.783,0.06695814]
[1672733916886,17.02,11.796,11.785,0.06695429]
[1672733920985,47.829,11.795,11.785,0.06695429]
[1672733921930,0.14121314,11.785,11.779,4.0]
[1672733922140,0.06468604,11.785,11.779,4.0]
[1672733922455,47.829,11.795,11.779,4.0]
[1672733923190,0.06985307,11.791,11.783,0.06027018]
[1672733933268,0.06985307,11.791,11.787,50.0]
[1672733933483,0.06985307,11.791,11.788,4.0]
[1672733933800,0.06376305,11.794,11.785,0.06537495]
[1672733934009,0.06471619,11.794,11.787,50.0]
[1672733934213,0.06471619,11.794,11.788,4.0]
[1672733934424,50.8015,11.797,11.794,0.17382102]
[1672733946833,17.02,11.799,11.794,0.17382102]
[1672733948097,16.93065132,11.799,11.794,0.17382102]
[1672733949672,16.96,11.799,11.794,0.17382102]
[1672733949987,16.96,11.801,11.794,0.17382102]
[1672733957969,48.8499,11.803,11.794,0.17382102]
[1672733961121,48.78028184,11.803,11.794,0.17382102]
[1672733967423,48.78028184,11.803,11.797,50.0]
[1672733967639,16.96,11.808,11.798,4.0]
[1672733967953,16.96,11.808,11.799,0.06784506]
[1672733968901,16.92,11.81,11.799,0.06784506]
[1672733969109,16.92,11.81,11.798,4.0]
[1672733969110,4.0,11.809,11.8,0.06408432]
[1672733969630,16.92,11.81,11.8,0.06408432]
[1672733973316,16.72545133,11.81,11.8,0.06408432]
[1672733975206,16.92,11.812,11.8,0.06408432]
[1672733975417,4.0,11.811,11.802,0.06597557]
[1672733975842,16.92,11.812,11.802,0.06597557]
[1672733985503,16.73642339,11.812,11.802,0.06597557]
[1672733986238,67.8411,11.814,11.802,0.06597557]